bitfinex/quotes_BTCUSD_20250817
["timestamp","ask_amount","ask_price","bid_price","bid_amount"]
[1755447132648,0.27353283,118430.0,118420.0,0.39002444]
[1755447135303,0.27353283,118430.0,118420.0,0.40002444]
[1755447137290,0.27353283,118430.0,118420.0,0.39689444]
[1755447137617,0.27664283,118430.0,118420.0,0.39490444]
[1755447137960,0.27353283,118430.0,118420.0,0.39490444]
[1755447138890,0.27353283,118430.0,118420.0,0.39703444]
[1755447139701,0.02175207,118430.0,118420.0,0.39703444]
[1755447139910,0.27564461,118430.0,118420.0,0.39703444]
[1755447140196,0.27353283,118430.0,118420.0,0.39703444]
[1755447140355,0.27353283,118430.0,118420.0,0.40024444]
[1755447141718,0.27353283,118430.0,118420.0,0.39703444]
[1755447142497,0.44551895,118430.0,118420.0,0.39430444]
[1755447142723,0.69729971,118430.0,118420.0,0.22541405]
[1755447142947,0.44551895,118430.0,118420.0,0.22541405]
[1755447143729,0.44240895,118430.0,118420.0,0.39430444]
[1755447143959,0.44240895,118430.0,118420.0,0.39643444]
[1755447144172,0.44240895,118430.0,118420.0,0.39964444]
[1755447145223,0.19062819,118430.0,118420.0,0.39964444]
[1755447145441,0.44240895,118430.0,118420.0,0.39964444]
[1755447147071,0.44240895,118430.0,118420.0,0.39643444]
[1755447148297,0.44240895,118430.0,118420.0,0.39430444]
[1755447149220,0.44551895,118430.0,118420.0,0.39430444]
[1755447150333,0.44551895,118430.0,118420.0,0.09481405]
[1755447150543,0.44551895,118430.0,118420.0,0.22533405]
[1755447151195,0.44451895,118430.0,118420.0,0.22533405]
[1755447151421,1.03629971,118430.0,118420.0,0.14052]
[1755447151610,0.53273819,118430.0,118420.0,0.14052]
[1755447151858,1.03629971,118430.0,118420.0,0.14052]
[1755447152418,1.03529971,118430.0,118420.0,0.14052]
[1755447152620,1.03529971,118430.0,118420.0,0.14152]
[1755447152621,1.03829971,118430.0,118420.0,0.14152]
[1755447157070,0.53473819,118430.0,118420.0,0.14152]
[1755447157289,1.03829971,118430.0,118420.0,0.14152]
[1755447158345,0.53473819,118430.0,118420.0,0.14152]
[1755447158575,1.03829971,118430.0,118420.0,0.14152]
[1755447158801,0.78651895,118430.0,118420.0,0.14152]
[1755447160088,1.03829971,118430.0,118420.0,0.14152]
[1755447161024,0.53473819,118430.0,118420.0,0.14152]
[1755447161247,1.03829971,118430.0,118420.0,0.14152]
[1755447162567,0.53473819,118430.0,118420.0,0.14152]
[1755447162983,1.03829971,118430.0,118420.0,0.14152]
[1755447163214,0.53473819,118430.0,118420.0,0.14152]
[1755447163470,1.03829971,118430.0,118420.0,0.14152]
[1755447166964,1.03829971,118430.0,118420.0,0.011]
[1755447167311,1.03829971,118430.0,118420.0,0.14148]
[1755447167945,1.03629971,118430.0,118420.0,0.14048]
[1755447168236,1.03929971,118430.0,118420.0,0.14148]
[1755447168454,1.10929971,118430.0,118420.0,0.14148]
[1755447169007,1.10829971,118430.0,118420.0,0.14148]
[1755447169441,0.60673819,118430.0,118420.0,0.14148]
[1755447169628,1.11029971,118430.0,118420.0,0.14148]
[1755447170299,0.60673819,118430.0,118420.0,0.14148]
[1755447170500,1.11029971,118430.0,118420.0,0.14148]
[1755447181618,0.60673819,118430.0,118420.0,0.14148]
[1755447181836,1.11029971,118430.0,118420.0,0.14148]
[1755447182169,0.60673819,118430.0,118420.0,0.14148]
[1755447182396,1.11029971,118430.0,118420.0,0.14148]
[1755447183866,1.11029971,118430.0,118420.0,0.1414]
[1755447184913,1.57730171,118430.0,118420.0,0.011]
[1755447185156,1.59313656,118430.0,118420.0,0.011]
[1755447185803,1.59113656,118430.0,118420.0,0.011]
[1755447186295,1.61351656,118430.0,118420.0,0.01]
[1755447186507,1.3647358,118430.0,118420.0,0.01]
[1755447186955,1.36472539,118430.0,118420.0,0.01]
[1755447187136,1.36872539,118430.0,118420.0,0.011]
[1755447187531,1.36572539,118430.0,118420.0,0.011]
[1755447187949,0.18635367,118410.0,118400.0,4.89e-05]
[1755447188142,0.82226519,118410.0,118400.0,4.89e-05]
[1755447188587,0.82525519,118410.0,118400.0,4.89e-05]
[1755447189298,0.82625519,118410.0,118400.0,0.0010489]
[1755447189726,0.82725519,118410.0,118400.0,0.0010489]
[1755447190392,0.83568069,118410.0,118400.0,0.0010489]
[1755447193013,0.33211917,118410.0,118400.0,0.0010489]
[1755447193241,0.83568069,118410.0,118400.0,0.0010489]
[1755447198326,0.83568069,118410.0,118370.0,0.49685162]
[1755447198327,0.16894745,118380.0,118370.0,0.36653424]
[1755447198567,0.16894745,118380.0,118370.0,0.58373725]
[1755447198756,0.16894745,118380.0,118370.0,0.60855725]
[1755447198981,0.16894745,118380.0,118370.0,0.56146563]
[1755447199639,0.16894745,118380.0,118370.0,0.56246563]
[1755447199821,0.16994745,118380.0,118370.0,0.56446563]
[1755447200045,0.42172821,118380.0,118370.0,0.22020301]
[1755447200234,0.42172821,118380.0,118370.0,0.22315301]
[1755447201817,0.43917723,118380.0,118370.0,0.22315301]
[1755447202548,0.69294799,118380.0,118370.0,0.22020301]
[1755447202770,0.44116723,118380.0,118370.0,0.22020301]
[1755447202989,0.69294799,118380.0,118370.0,0.22020301]
[1755447203198,0.69194799,118380.0,118370.0,0.21820301]
[1755447203423,0.44116723,118380.0,118370.0,0.21920301]
[1755447203642,0.69593799,118380.0,118370.0,0.13136896]
[1755447203856,0.69593799,118380.0,118370.0,4.896e-05]
[1755447204520,1.16625799,118380.0,118370.0,4.896e-05]
[1755447205614,1.16825799,118380.0,118370.0,4.896e-05]
[1755447205834,1.16925799,118380.0,118370.0,0.00104896]
[1755447206047,1.16725799,118380.0,118370.0,4.896e-05]
[1755447206484,1.23925799,118380.0,118370.0,0.00104896]
[1755447211595,1.25504028,118380.0,118370.0,0.00104896]
[1755447219951,1.50682104,118380.0,118370.0,0.00104896]
[1755447220156,0.75147876,118380.0,118370.0,0.00104896]
[1755447220341,1.50683513,118380.0,118370.0,0.00104896]
[1755447220892,0.16900456,118340.0,118330.0,0.028459]
[1755447221121,0.6900151,118340.0,118330.0,0.08991301]
[1755447222250,0.18645358,118340.0,118330.0,0.08991301]
[1755447222446,0.6900151,118340.0,118330.0,0.08991301]
[1755447223103,0.6900151,118340.0,118330.0,0.09291301]
[1755447223104,0.6910151,118340.0,118330.0,0.09291301]
[1755447223354,0.18845358,118340.0,118330.0,0.09691301]
[1755447223589,0.6910151,118340.0,118330.0,0.09291301]
[1755447223817,0.6910151,118340.0,118330.0,0.09091301]
[1755447224035,0.6920151,118340.0,118330.0,0.09091301]
[1755447224476,0.18845358,118340.0,118330.0,0.09091301]
[1755447224739,0.6920151,118340.0,118330.0,0.09091301]
[1755447227480,0.6920151,118340.0,118330.0,0.08784301]
[1755447227718,0.6941651,118340.0,118330.0,0.00302896]
[1755447227955,1.07942586,118340.0,118330.0,0.00104896]
[1755447228177,1.4352196,118340.0,118330.0,0.00104896]
[1755447228874,1.45341648,118340.0,118330.0,0.00104896]
[1755447229090,1.18343884,118340.0,118330.0,0.00104896]
[1755447229322,1.1676451,118340.0,118330.0,0.00104896]
[1755447229537,1.20164103,118340.0,118330.0,0.00104896]
[1755447230449,1.03436511,118340.0,118330.0,0.00104896]
[1755447231016,1.03236511,118340.0,118330.0,4.896e-05]
[1755447231231,1.03236511,118340.0,118330.0,0.00104896]
[1755447231492,1.03536511,118340.0,118330.0,0.00104896]
[1755447233740,1.03540511,118340.0,118330.0,0.00104896]
[1755447236700,0.8869239,118340.0,118330.0,0.00104896]
[1755447236926,0.8869239,118340.0,118330.0,0.00302896]
[1755447236927,1.0139639,118340.0,118330.0,0.00302896]
[1755447237411,1.0172039,118340.0,118330.0,0.00302896]
[1755447238288,0.6809183,118340.0,118330.0,0.00302896]
[1755447238509,1.0172039,118340.0,118330.0,0.00302896]
[1755447238710,1.01720504,118340.0,118330.0,0.00302896]
[1755447238933,0.68091944,118340.0,118330.0,0.00302896]
[1755447239164,1.01720504,118340.0,118330.0,0.00104896]
[1755447240085,1.18684033,118340.0,118300.0,0.0002]
[1755447240326,0.52659651,118240.0,118230.0,0.0002]
[1755447240562,1.42005176,118240.0,118230.0,0.0002]
[1755447240798,1.42005176,118240.0,118230.0,0.00068724]
[1755447241036,1.43907735,118240.0,118230.0,0.00068724]
[1755447241251,0.16919042,118210.0,118200.0,0.0083061]
[1755447241492,0.16919042,118210.0,118200.0,0.0102861]
[1755447241949,0.17134042,118210.0,118200.0,0.0102861]
[1755447242176,0.16919042,118210.0,118200.0,0.0102861]
[1755447242395,0.18490159,118210.0,118200.0,0.0102861]
[1755447242612,0.18693159,118210.0,118200.0,0.0102861]
[1755447243058,0.19790652,118210.0,118200.0,0.0083061]
[1755447243278,0.21535554,118210.0,118200.0,0.0083061]
[1755447243792,0.34935554,118210.0,118200.0,0.0083061]
[1755447244044,0.21735554,118210.0,118200.0,0.0113061]
[1755447244288,0.21220554,118210.0,118200.0,0.3496217]
[1755447244509,0.21220554,118210.0,118200.0,0.94214608]
[1755447244510,0.01671117,118210.0,118200.0,0.94214608]
[1755447244744,0.17019042,118210.0,118200.0,0.29255488]
[1755447244972,0.17119042,118210.0,118200.0,0.12335015]
[1755447245199,0.17119042,118210.0,118200.0,0.45963575]
[1755447245432,0.17019042,118210.0,118200.0,0.29055488]
[1755447245618,0.17019042,118210.0,118200.0,0.62784048]
[1755447245886,0.004,118210.0,118200.0,0.62784048]
[1755447246114,0.003,118210.0,118200.0,2.02534508]
[1755447246343,0.004,118210.0,118200.0,1.5435077]
[1755447246576,0.006,118210.0,118200.0,1.3466887]
[1755447246793,0.006,118210.0,118200.0,1.4661207]
[1755447246999,0.004,118210.0,118200.0,1.4651207]
[1755447247213,0.16963536,118240.0,118220.0,0.16916383]
[1755447247424,0.18919616,118240.0,118230.0,0.55549965]
[1755447247678,0.18708438,118240.0,118230.0,0.72669145]
[1755447247902,0.00048685,118240.0,118230.0,0.39362585]
[1755447248113,0.00048685,118240.0,118230.0,0.72991145]
[1755447248329,0.17174612,118240.0,118230.0,0.39362585]
[1755447248512,0.16963434,118240.0,118230.0,0.39362585]
[1755447248765,0.16963434,118240.0,118230.0,0.22124405]
[1755447249008,0.20787715,118240.0,118230.0,0.1344]
[1755447249232,0.20787715,118240.0,118230.0,0.001]
[1755447249233,0.20987715,118240.0,118230.0,0.001]
[1755447249452,0.18661082,118230.0,118220.0,0.13432]
[1755447249677,0.18661082,118230.0,118220.0,0.13635]
[1755447249678,0.20225461,118230.0,118220.0,0.13635]
[1755447249898,0.20428461,118230.0,118220.0,0.13635]
[1755447250557,0.20428461,118230.0,118220.0,0.30552611]
[1755447250558,0.03309281,118230.0,118220.0,0.30552611]
[1755447250782,0.03520459,118230.0,118220.0,0.30552611]
[1755447251010,0.03620459,118230.0,118220.0,0.30652611]
[1755447251240,0.0205608,118230.0,118220.0,0.30652611]
[1755447251725,0.01844902,118230.0,118220.0,0.39456016]
[1755447251956,0.01844902,118230.0,118220.0,0.39556016]
[1755447252172,0.01944902,118230.0,118220.0,0.39556016]
[1755447252393,0.01944902,118230.0,118220.0,0.72432168]
[1755447253073,0.002,118230.0,118220.0,0.72432168]
[1755447255170,0.002,118230.0,118220.0,0.74730168]
[1755447256104,0.002,118230.0,118220.0,1.37414368]
[1755447256325,0.002,118230.0,118220.0,1.38214368]
[1755447256615,0.002,118230.0,118220.0,1.33067068]
[1755447256859,0.001,118230.0,118220.0,1.32967068]
[1755447257106,0.002,118230.0,118220.0,1.67267068]
[1755447257314,0.002,118230.0,118220.0,1.34390916]
[1755447257543,0.002,118230.0,118220.0,1.67267068]
[1755447257776,0.001,118230.0,118220.0,1.67167068]
[1755447258177,0.002,118230.0,118220.0,1.67467068]
[1755447258394,0.002,118230.0,118220.0,1.71183222]
[1755447261425,0.001,118230.0,118220.0,1.70883222]
[1755447261614,0.00048685,118240.0,118230.0,0.5091618]
[1755447261872,0.00048685,118240.0,118230.0,2.32416137]
[1755447262725,0.00048685,118240.0,118230.0,1.76585137]
[1755447264336,0.00148685,118240.0,118230.0,1.76685137]
[1755447264552,0.00148685,118240.0,118230.0,1.74047937]
[1755447264976,0.00148685,118240.0,118230.0,1.74247937]
[1755447266546,0.00148685,118240.0,118230.0,1.76788637]
[1755447268361,0.00148685,118240.0,118230.0,2.11204643]
[1755447270895,0.00148685,118240.0,118230.0,1.43912485]
[1755447271115,0.00148685,118240.0,118230.0,2.11204643]
[1755447272826,0.00148685,118240.0,118230.0,2.12004643]
[1755447273262,0.00148685,118240.0,118230.0,2.11204643]
[1755447273483,0.00148685,118240.0,118230.0,1.43912485]
[1755447273699,0.00148685,118240.0,118230.0,1.69668464]
[1755447273928,0.00148685,118240.0,118230.0,0.63241285]
[1755447274118,0.02228038,118240.0,118230.0,0.39805585]
[1755447274425,0.02228038,118240.0,118230.0,0.73451664]
[1755447274638,0.02228003,118240.0,118230.0,0.73451664]
[1755447275635,0.02228003,118240.0,118230.0,0.39805585]
[1755447275999,0.02228003,118240.0,118230.0,0.73451664]
[1755447278455,0.02228003,118240.0,118230.0,0.39805585]
[1755447278873,0.02228003,118240.0,118230.0,0.73451664]
[1755447280448,0.02228003,118240.0,118230.0,0.73419664]
[1755447281106,0.19142752,118240.0,118230.0,0.73419664]
[1755447281321,0.19142752,118240.0,118230.0,0.73219664]
[1755447281534,0.02128003,118240.0,118230.0,0.73119664]
[1755447281974,0.02228003,118240.0,118230.0,0.73219664]
[1755447282422,0.02228003,118240.0,118230.0,0.73319664]
[1755447282871,0.02228003,118240.0,118230.0,0.72519664]
[1755447283077,0.02231136,118240.0,118230.0,0.72519664]
[1755447283507,0.02231136,118240.0,118230.0,0.72419664]
[1755447283866,0.02231136,118240.0,118230.0,0.72519664]
[1755447284283,0.19145885,118240.0,118230.0,0.38873585]
[1755447284485,0.19145885,118240.0,118230.0,0.72519664]
[1755447284692,0.02231136,118240.0,118230.0,0.72519664]
[1755447284887,0.02231136,118240.0,118230.0,0.38873585]
[1755447285127,0.02231136,118240.0,118230.0,0.72519664]
[1755447285827,0.02231136,118240.0,118230.0,0.38873585]
[1755447286015,0.02231136,118240.0,118230.0,0.72519664]
[1755447288281,0.00650685,118240.0,118230.0,0.72519664]
[1755447294433,0.17776612,118240.0,118230.0,0.38873585]
[1755447294685,0.17565434,118240.0,118230.0,0.38873585]
[1755447295104,0.17565434,118240.0,118230.0,0.72519664]
[1755447296477,0.17565434,118240.0,118230.0,0.38873585]
[1755447297122,0.00650685,118240.0,118230.0,0.38873585]
[1755447297324,0.00861863,118240.0,118230.0,0.72519664]
[1755447300544,0.00861863,118240.0,118230.0,0.72728664]
[1755447300750,0.00148685,118240.0,118230.0,0.73022664]
[1755447301607,0.00148685,118240.0,118230.0,0.39376585]
[1755447301819,0.00148685,118240.0,118230.0,0.73022664]
[1755447302218,0.00148685,118240.0,118230.0,0.39376585]
[1755447302440,0.00148685,118240.0,118230.0,0.73022664]
[1755447305040,0.00148685,118240.0,118230.0,0.39376585]
[1755447305459,0.00148685,118240.0,118230.0,0.73022664]
[1755447307551,0.00148685,118240.0,118230.0,0.72728664]
[1755447308492,0.00148685,118240.0,118230.0,0.39082585]
[1755447308678,0.00148685,118240.0,118230.0,0.72728664]
[1755447309774,0.00681685,118240.0,118230.0,0.72728664]
[1755447309993,0.00681685,118240.0,118230.0,0.25597585]
[1755447310226,0.00681685,118240.0,118230.0,0.38817585]
[1755447311401,0.17596434,118240.0,118230.0,0.38817585]
[1755447312196,0.00681685,118240.0,118230.0,0.38817585]
[1755447312609,0.00681685,118240.0,118230.0,0.72463664]
[1755447313030,0.00681685,118240.0,118230.0,0.38817585]
[1755447313194,0.00681685,118240.0,118230.0,0.72463664]
[1755447314496,0.17596434,118240.0,118230.0,0.38817585]
[1755447314702,0.17596434,118240.0,118230.0,0.72463664]
[1755447315443,0.19341336,118240.0,118230.0,0.21901405]
[1755447316833,0.19341336,118240.0,118230.0,0.002]
[1755447317038,0.19341336,118240.0,118230.0,0.13396]
[1755447330771,0.19241336,118240.0,118230.0,0.13196]
[1755447331652,0.19441336,118240.0,118230.0,0.13296]
[1755447332182,0.19541336,118240.0,118230.0,0.13296]
[1755447332736,0.16919042,118210.0,118200.0,0.0083061]
[1755447332966,0.52515023,118210.0,118200.0,0.09312015]
[1755447333189,0.52837023,118210.0,118200.0,0.09312015]
[1755447333409,0.19190944,118210.0,118200.0,0.09312015]
[1755447333846,0.2595713,118210.0,118200.0,0.09312015]
[1755447334072,0.2595713,118210.0,118200.0,0.09412015]
[1755447334300,0.2655713,118210.0,118200.0,0.09412015]
[1755447334516,0.19790944,118210.0,118200.0,0.22784015]
[1755447334744,0.19990944,118210.0,118200.0,0.22884015]
[1755447334991,0.19990944,118210.0,118200.0,0.23088015]
[1755447335206,0.19990944,118210.0,118200.0,0.56734094]
[1755447335603,0.19990944,118210.0,118200.0,0.23088015]
[1755447336019,0.19790944,118210.0,118200.0,0.22884015]
[1755447336248,0.27589977,118210.0,118200.0,0.09512015]
[1755447336447,0.19790944,118210.0,118200.0,0.0103061]
[1755447336886,0.53537023,118210.0,118200.0,0.0103061]
[1755447337330,0.19890944,118210.0,118200.0,0.0103061]
[1755447337750,0.36890944,118210.0,118200.0,0.0103061]
[1755447337962,0.70537023,118210.0,118200.0,0.0103061]
[1755447338179,0.36890944,118210.0,118200.0,0.0103061]
[1755447338876,0.70537023,118210.0,118200.0,0.0103061]
[1755447339097,0.36890944,118210.0,118200.0,0.0103061]
[1755447339516,0.70537023,118210.0,118200.0,0.0103061]
[1755447339744,0.36890944,118210.0,118200.0,0.0103061]
[1755447341126,0.50822944,118210.0,118200.0,0.0103061]
[1755447341554,0.33822944,118210.0,118200.0,0.0103061]
[1755447342688,1.01469023,118210.0,118200.0,0.0103061]
[1755447343887,1.09469023,118210.0,118200.0,0.0103061]
[1755447344304,0.75822944,118210.0,118200.0,0.0103061]
[1755447344715,1.09469023,118210.0,118200.0,0.0103061]
[1755447344924,0.75822944,118210.0,118200.0,0.0103061]
[1755447345372,1.09469023,118210.0,118200.0,0.0103061]
[1755447346005,0.75822944,118210.0,118200.0,0.0103061]
[1755447346241,0.86804349,118210.0,118200.0,0.0103061]
[1755447346489,0.96862482,118210.0,118200.0,0.0103061]
[1755447346711,0.7569364,118210.0,118200.0,0.0103061]
[1755447346929,1.08739719,118210.0,118200.0,0.0083061]
[1755447347148,0.6102164,118210.0,118200.0,0.0103461]
[1755447347372,0.59419042,118210.0,118200.0,0.0113461]
[1755447347609,0.73711042,118210.0,118200.0,0.0113461]
[1755447347823,0.75455944,118210.0,118200.0,0.0113461]
[1755447348028,0.75455944,118210.0,118200.0,0.0103461]
[1755447348029,0.75360944,118210.0,118200.0,0.0103461]
[1755447348241,0.76182944,118210.0,118200.0,0.0112661]
[1755447348451,0.76182944,118210.0,118200.0,0.0102661]
[1755447348452,0.75382944,118210.0,118200.0,0.0102661]
[1755447348892,0.75782944,118210.0,118200.0,0.0112661]
[1755447349949,0.61790944,118210.0,118200.0,0.0112661]
[1755447350129,0.75267944,118210.0,118200.0,0.0112661]
[1755447350377,0.75794944,118210.0,118200.0,0.0112661]
[1755447350794,0.75794944,118210.0,118200.0,0.0092261]
[1755447351481,1.09441023,118210.0,118200.0,0.0092261]
[1755447352012,1.09445023,118210.0,118200.0,0.0092261]
[1755447352666,1.09437849,118210.0,118200.0,0.0092261]
[1755447354114,0.95429849,118210.0,118200.0,0.0092261]
[1755447354348,1.09437849,118210.0,118200.0,0.0092261]
[1755447355341,0.7579177,118210.0,118200.0,0.0092261]
[1755447355558,1.11005155,118210.0,118200.0,0.0092261]
[1755447360084,0.77359076,118210.0,118200.0,0.0092261]
[1755447360367,1.27968684,118210.0,118200.0,1e-08]
[1755447360602,1.5554381,118210.0,118200.0,1e-08]
[1755447360833,1.21897731,118210.0,118200.0,1e-08]
[1755447361313,0.88051652,118210.0,118200.0,1e-08]
[1755447361549,0.87951652,118210.0,118200.0,0.00100001]
[1755447361775,1.5524381,118210.0,118200.0,0.00100001]
[1755447362019,1.5524381,118210.0,118200.0,0.00200001]
[1755447362020,1.59614989,118210.0,118200.0,0.00200001]
[1755447362251,1.59314989,118210.0,118200.0,0.00100001]
[1755447362496,0.18666807,118190.0,118180.0,0.098]
[1755447362741,0.34806763,118190.0,118180.0,0.098]
[1755447363028,1.02452842,118190.0,118180.0,0.098]
[1755447363263,1.04275063,118190.0,118180.0,0.098]
[1755447363512,1.12756468,118190.0,118180.0,0.098]
[1755447363740,1.13397435,118190.0,118180.0,0.098]
[1755447363991,1.13497435,118190.0,118180.0,0.098]
[1755447364430,1.22079559,118190.0,118180.0,0.098]
[1755447364642,1.21879559,118190.0,118180.0,0.098]
[1755447364855,1.22079559,118190.0,118180.0,0.099]
[1755447365075,1.0561203,118190.0,118180.0,0.099]
[1755447365809,1.14093435,118190.0,118180.0,0.099]
[1755447366230,0.80446896,118190.0,118180.0,0.099]
[1755447366436,1.14086483,118190.0,118180.0,0.099]
[1755447367092,1.22568607,118190.0,118180.0,0.099]
[1755447367324,1.25112007,118190.0,118180.0,0.099]
[1755447367538,0.91465928,118190.0,118180.0,0.099]
[1755447367753,1.25112007,118190.0,118180.0,0.099]
[1755447367974,0.82983804,118190.0,118180.0,0.099]
[1755447368215,1.16629883,118190.0,118180.0,0.099]
[1755447368423,0.82981767,118190.0,118180.0,0.099]
[1755447368835,1.16627846,118190.0,118180.0,0.099]
[1755447369037,1.16695846,118190.0,118180.0,0.099]
[1755447369492,1.2517797,118190.0,118180.0,0.099]
[1755447369939,1.25171432,118190.0,118180.0,0.099]
[1755447370139,0.91525353,118190.0,118180.0,0.099]
[1755447370347,1.16689308,118190.0,118180.0,0.099]
[1755447370576,0.83043229,118190.0,118180.0,0.094]
[1755447370834,1.16689308,118190.0,118180.0,0.094]
[1755447371925,1.16689308,118190.0,118140.0,0.00315]
[1755447371926,0.18672536,118150.0,118140.0,0.00315]
[1755447372168,0.32804536,118150.0,118140.0,0.00522]
[1755447372411,0.32804536,118150.0,118140.0,0.00207]
[1755447372412,0.66450615,118150.0,118140.0,0.00207]
[1755447372648,0.66804536,118150.0,118140.0,0.00207]
[1755447372882,0.18673969,118140.0,118120.0,0.20899855]
[1755447373110,0.18673969,118140.0,118130.0,0.25411905]
[1755447373369,0.18722594,118140.0,118130.0,0.08481405]
[1755447373606,0.18722594,118140.0,118130.0,0.25411905]
[1755447373858,0.32882594,118140.0,118130.0,0.25411905]
[1755447374132,0.32882594,118140.0,118130.0,0.59057984]
[1755447374359,0.01793527,118140.0,118130.0,0.59057984]
[1755447374585,0.19033772,118140.0,118130.0,0.25511905]
[1755447374814,0.18822594,118140.0,118130.0,0.08581405]
[1755447375041,0.18822594,118140.0,118130.0,0.25511905]
[1755447375490,0.01893527,118140.0,118130.0,0.25511905]
[1755447375764,0.19033772,118140.0,118130.0,0.25511905]
[1755447376008,0.19022594,118140.0,118130.0,0.61434984]
[1755447376435,0.19022594,118140.0,118130.0,0.27788905]
[1755447376653,0.19022594,118140.0,118130.0,0.10858405]
[1755447377084,0.19022594,118140.0,118130.0,0.27788905]
[1755447377321,0.19022594,118140.0,118130.0,0.61434984]
[1755447377543,0.02093527,118140.0,118130.0,0.27788905]
[1755447377751,0.02304705,118140.0,118130.0,0.61434984]
[1755447378378,0.19233772,118140.0,118130.0,0.27788905]
[1755447378606,0.19022594,118140.0,118130.0,0.27788905]
[1755447378807,0.19022594,118140.0,118130.0,0.61434984]
[1755447379669,0.02093527,118140.0,118130.0,0.61434984]
[1755447379883,0.02093527,118140.0,118130.0,0.27788905]
[1755447380094,0.02093527,118140.0,118130.0,0.61434984]
[1755447380095,0.00348625,118140.0,118130.0,0.61434984]
[1755447380734,0.00348625,118140.0,118130.0,0.27788905]
[1755447380952,0.00348625,118140.0,118130.0,0.61434984]
[1755447381198,0.00348625,118140.0,118130.0,0.27788905]
[1755447381412,0.00348625,118140.0,118130.0,0.61434984]
[1755447381936,0.19022594,118140.0,118130.0,0.61434984]
[1755447382148,0.19022594,118140.0,118130.0,0.44504484]
[1755447382373,0.19022594,118140.0,118130.0,0.10858405]
[1755447382587,0.19321594,118140.0,118130.0,0.08581405]
[1755447383381,0.19321594,118140.0,118130.0,0.25511905]
[1755447383585,0.19321594,118140.0,118130.0,0.59157984]
[1755447383816,0.19321594,118140.0,118130.0,0.08581405]
[1755447384250,0.19537594,118140.0,118130.0,0.08581405]
[1755447386184,0.19321594,118140.0,118130.0,0.25511905]
[1755447386370,0.19321594,118140.0,118130.0,0.08581405]
[1755447386579,0.19321594,118140.0,118130.0,0.59157984]
[1755447386785,0.19321594,118140.0,118130.0,0.08581405]
[1755447387452,0.19321594,118140.0,118130.0,0.42227484]
[1755447388068,0.19321594,118140.0,118130.0,0.08581405]
[1755447388279,0.19321594,118140.0,118130.0,0.42227484]
[1755447388539,0.19321594,118140.0,118130.0,0.59157984]
[1755447389440,0.19321594,118140.0,118130.0,0.08581405]
[1755447389667,0.19321594,118140.0,118130.0,0.25723536]
[1755447389886,0.19022594,118140.0,118130.0,0.59157984]
[1755447390064,0.02093527,118140.0,118130.0,0.59157984]
[1755447390711,0.02093527,118140.0,118130.0,0.25511905]
[1755447390932,0.02093527,118140.0,118130.0,0.59157984]
[1755447391330,0.19022594,118140.0,118130.0,0.59157984]
[1755447391535,0.02093527,118140.0,118130.0,0.59157984]
[1755447391899,0.02093527,118140.0,118130.0,0.25511905]
[1755447392101,0.02093527,118140.0,118130.0,0.59157984]
[1755447392507,0.02093527,118140.0,118130.0,0.25511905]
[1755447392727,0.02093527,118140.0,118130.0,0.59157984]
[1755447393866,0.02093527,118140.0,118130.0,0.25511905]
[1755447394068,0.02093527,118140.0,118130.0,0.59157984]
[1755447396003,0.02093527,118140.0,118130.0,0.25511905]
[1755447396207,0.02093527,118140.0,118130.0,0.59157984]
[1755447396428,0.02093527,118140.0,118130.0,0.25511905]
[1755447396652,0.02093527,118140.0,118130.0,0.59157984]
[1755447396862,0.02093527,118140.0,118130.0,0.25511905]
[1755447397060,0.02093527,118140.0,118130.0,0.59157984]
[1755447397518,0.02093527,118140.0,118130.0,0.25511905]
[1755447397932,0.02093527,118140.0,118130.0,0.59157984]
[1755447398358,0.02093527,118140.0,118130.0,0.25511905]
[1755447398570,0.02093527,118140.0,118130.0,0.59157984]
[1755447398807,0.02093527,118140.0,118130.0,0.25511905]
[1755447399015,0.02093527,118140.0,118130.0,0.59157984]
[1755447399228,0.19022594,118140.0,118130.0,0.25511905]
[1755447399426,0.19325594,118140.0,118130.0,0.59157984]
[1755447399879,0.19521594,118140.0,118130.0,0.42227484]
[1755447400225,0.19521594,118140.0,118130.0,0.08581405]
[1755447400431,0.19521594,118140.0,118130.0,0.22809405]
[1755447400644,0.19521594,118140.0,118130.0,0.22817405]
[1755447400855,0.33757594,118140.0,118130.0,0.08581405]
[1755447401024,0.67403673,118140.0,118130.0,0.001]
[1755447401235,1.11466977,118140.0,118130.0,0.001]
[1755447401468,1.02984853,118140.0,118130.0,0.001]
[1755447401673,1.04605667,118140.0,118130.0,0.001]
[1755447401883,1.04805667,118140.0,118130.0,0.001]
[1755447402112,1.21805667,118140.0,118130.0,0.001]
[1755447402318,1.21605636,118140.0,118130.0,0.001]
[1755447402526,1.19984853,118140.0,118130.0,0.001]
[1755447402730,0.16902198,118130.0,118120.0,0.02299255]
[1755447402930,0.53130535,118130.0,118120.0,0.02299255]
[1755447403137,0.54711715,118130.0,118120.0,0.02299255]
[1755447404153,0.54911715,118130.0,118120.0,0.02299255]
[1755447404489,0.21265636,118130.0,118120.0,0.02299255]
[1755447404700,0.21365636,118130.0,118120.0,0.02299255]
[1755447405276,0.55011715,118130.0,118120.0,0.02299255]
[1755447405666,0.35641636,118130.0,118120.0,0.02299255]
[1755447405892,0.35641636,118130.0,118120.0,0.01799255]
[1755447407584,0.69287715,118130.0,118120.0,0.01799255]
[1755447408635,0.69282997,118130.0,118120.0,0.01799255]
[1755447409652,0.35636918,118130.0,118120.0,0.01799255]
[1755447410656,0.35636395,118130.0,118120.0,0.01799255]
[1755447410864,0.35616395,118130.0,118120.0,0.01799255]
[1755447411662,0.34040456,118130.0,118120.0,0.01799255]
[1755447411872,0.35616215,118130.0,118120.0,0.01799255]
[1755447412507,0.34040456,118130.0,118120.0,0.01799255]
[1755447415119,0.74452721,118130.0,118120.0,0.01799255]
[1755447415802,0.40806642,118130.0,118120.0,0.01799255]
[1755447416020,0.40706642,118130.0,118120.0,0.01799255]
[1755447416262,0.40806642,118130.0,118120.0,0.01799255]
[1755447416786,0.34040456,118130.0,118120.0,0.01799255]
[1755447417372,0.53616758,118130.0,118120.0,0.60858672]
[1755447417590,0.53416758,118130.0,118120.0,0.60858672]
[1755447417809,0.5536166,118130.0,118120.0,0.60858672]
[1755447418017,0.02383258,118130.0,118120.0,0.75110672]
[1755447418852,0.02283258,118130.0,118120.0,1.11042751]
[1755447419082,0.02083258,118130.0,118120.0,1.11042751]
[1755447419422,0.02283258,118130.0,118120.0,1.11042751]
[1755447419833,0.02383258,118130.0,118120.0,0.77396672]
[1755447420193,0.02283258,118130.0,118120.0,0.77396672]
[1755447420439,0.02283258,118130.0,118120.0,1.11042751]
[1755447420658,0.00303,118180.0,118170.0,0.16924769]
[1755447421076,0.00303,118180.0,118170.0,0.59052253]
[1755447421290,0.00303,118180.0,118170.0,0.25406174]
[1755447421760,0.00303,118180.0,118170.0,0.59052253]
[1755447421972,0.00514178,118180.0,118170.0,0.5905715]